[Event "Super United Croatia GCT Rapid 2022"]
[Site "Zagreb"]
[Date "2022.07.20"]
[Round "1.2"]
[White "Firouzja, Alireza"]
[Black "Saric, Ivan"]
[Result "1-0"]
[ECO "B50"]
[WhiteElo "2793"]
[BlackElo "2680"]
[Annotator "TA"]
[PlyCount "193"]
[EventDate "2022.07.20"]
[EventType "tourn"]
[EventCountry "CRO"]
[SourceTitle "playchess.com"]
[Source "ChessBase"]
[SourceQuality "1"]
[TimeControl "5400+30"]

{[%evp 9,193,20,21,26,24,19,21,9,15,9,27,0,33,25,29,0,27,18,18,20,24,16,27,22,18,18,19,15,16,11,11,4,4,0,11,11,11,11,11,11,11,11,18,11,18,18,18,18,36,18,18,18,61,61,61,61,63,63,63,63,63,63,63,61,61,61,56,41,41,2,2,2,2,2,2,0,0,0,0,0,0,0,0,0,15,15,15,7,7,7,7,7,7,7,7,7,8,6,6,6,6,6,6,6,8,6,109,8,8,8,8,8,8,8,8,8,8,8,8,8,8,8,8,8,8,8,27,31,44,44,29966,29967,29968,29965,29967,29967,29967,29963,29966,29963,29964,29964,29964,29963,29967,29969,29970,29967,29967,29968,29970,29971,29972,29971,29971,29971,29971,29972,29972,29971,29971,29972,29973,29974,29974,29975,29975,29976,29976,29977,29977,29978,29979,29980,29980,29981,29981,29977,29977,29978,29978,29978,29980,29981,29981,29982]} 1. e4 {[%emt 1:05:41]} c5 {[%emt 1:05:42]} 2. Nf3 {[%emt 0:00:22][%cal Bg1f3,Bf3h2,Bh2g4,Bg4e3][%mdl 32]} d6 {[%emt 0:00:24]} 3. Nc3 {[%emt 0:00:21]} Nf6 {[%emt 0:00:23]} 4. h3 {[%emt 0:00:22]} e5 {[%emt 0:02:31]} 5. Bc4 {[%emt 0:00:35]} Be7 {[%emt 0:00:46]} 6. d3 {[%emt 0:00:23] B50: Sicilian: 2...d6, Miscellaneous.} O-O {[%emt 0:00:49]} 7. Nh2 $5 {[%emt 0:00:29][%mdl 4] An interesting side line.} Nc6 {[%emt 0:00:50]} 8. Ng4 {[%emt 0:00:41] The position is equal.} Be6 {[%emt 0:02:25][%cal Of6e4]} 9. Ne3 {[%emt 0:00:26]} Nd4 {[%emt 0:00:45] [#]} 10. O-O $146 {[%emt 0:00:31]} ({Predecessor:} 10. Ncd5 Nxd5 11. Bxd5 Bg5 12. O-O Bxe3 13. Bxe3 Bxd5 14. exd5 Nf5 15. Bd2 Qh4 16. c3 {0-1 (39) Denisov,L (2322)-Sitnikov,D (2434) Kemerovo 2010}) 10... Rb8 {[%emt 0:00:39]} 11. a4 {[%emt 0:00:22]} a6 {[%emt 0:00:21]} 12. Ncd5 {[%emt 0:01:13]} b5 {[%emt 0:01:07]} 13. axb5 {[%emt 0:00:37]} axb5 {[%emt 0:00:20]} 14. Nxf6+ {[%emt 0:00:22]} Bxf6 {[%emt 0:00:22]} 15. Bd5 {[%emt 0:00:21] aiming for c3.} b4 {[%emt 0:01:32]} 16. c3 {[%emt 0:01:08]} bxc3 {[%emt 0:00:34]} 17. bxc3 {[%emt 0:00:22]} Nb3 {[%emt 0:00:35]} 18. Bxe6 {[%emt 0:01:09]} fxe6 {[%emt 0:00:52]} 19. Rb1 {[%emt 0:00:23]} Nxc1 {[%emt 0:00:33]} 20. Qxc1 {[%emt 0:00:21]} Bg5 {[%emt 0:00:34]} 21. Re1 {[%emt 0:00:33]} Qf6 {[%emt 0:01:27]} 22. Rb2 {[%emt 0:00:24]} h6 {[%emt 0:01:32]} 23. Qc2 {[%emt 0:00:28]} Bxe3 {[%emt 0:00:41]} 24. Rxe3 {[%emt 0:00:25]} Rxb2 {[%emt 0:01:33]} 25. Qxb2 $11 {[%emt 0:00:21][%mdl 4096] Endgame KQR-KQR} Qh4 {[%emt 0:00:32]} 26. Re1 {[%emt 0:01:21][%cal Be3e1,Be1a1,Ba1a3][%mdl 32]} Kh7 {[%emt 0:00:23]} 27. Qe2 {[%emt 0:00:50]} Rf6 {[%emt 0:00:39]} 28. Ra1 {[%emt 0:00:40]} Qf4 {[%emt 0:00:50]} 29. c4 {[%emt 0:01:13]} Rf7 {[%emt 0:00:41]} 30. g3 {[%emt 0:00:32]} Qf3 {[%emt 0:01:24]} 31. Qxf3 {[%emt 0:00:22]} Rxf3 $14 {[%emt 0:00:21] KR-KR} 32. Ra3 {[%emt 0:00:21]} Kg6 {[%emt 0:00:34]} 33. Kg2 {[%emt 0:00:22]} Rf7 {[%emt 0:00:20]} 34. Ra6 {[%emt 0:00:24]} Rd7 {[%emt 0:00:21]} 35. Kf3 {[%emt 0:00:31]} Kf6 {[%emt 0:00:22]} 36. Kg4 {[%emt 0:00:31]} g6 {[%emt 0:01:21]} 37. h4 {[%emt 0:00:44]} h5+ {[%emt 0:00:32]} 38. Kf3 {[%emt 0:00:23]} Ke7 {[%emt 0:01:11]} 39. g4 {[%emt 0:01:23]} hxg4+ $1 {[%emt 0:00:25]} 40. Kxg4 {[%emt 0:00:22]} Kf6 {[%emt 0:00:21]} 41. Rb6 {[%emt 0:00:44]} Rd8 {[%emt 0:00:24]} 42. Rb7 {[%emt 0:03:51]} Ra8 {[%emt 0:03:47]} 43. Rd7 {[%emt 0:00:23]} Ra6 {[%emt 0:00:21]} 44. Kf3 {[%emt 0:00:21]} Rb6 {[%emt 0:00:32]} 45. Ke3 {[%emt 0:00:22]} Ra6 {[%emt 0:00:24]} 46. f3 {[%emt 0:00:29]} Rb6 {[%emt 0:00:29]} 47. Kd2 {[%emt 0:01:06]} Rb2+ {[%emt 0:04:58]} 48. Kc3 {[%emt 0:00:22]} Rf2 {[%emt 0:00:30]} 49. Rxd6 {[%emt 0:00:22]} Rxf3 {[%emt 0:00:21]} 50. Rc6 {[%emt 0:00:21]} Rh3 {[%emt 0:00:23]} 51. Rxc5 {[%emt 0:00:22]} Rxh4 {[%emt 0:00:21]} 52. Rc8 {[%emt 0:00:35]} g5 {[%emt 0:00:39]} 53. Rg8 {[%emt 0:01:11]} Rh1 {[%emt 0:02:24]} 54. c5 {[%emt 0:00:43]} Rg1 {[%emt 0:01:14]} 55. Kb4 {[%emt 0:01:34]} Kf7 {[%emt 0:00:30]} 56. Rh8 {[%emt 0:02:04] Black must now prevent c6.} Rc1 {[%emt 0:02:05]} 57. Kb5 {[%emt 0:01:02] c6 is the strong threat.} Rc3 {[%emt 0:01:16] [#]} (57... g4 $11 {remains equal.}) 58. c6 {[%emt 0:03:50]} (58. Rh3 $1 $16 {[%cal Rh3g3]}) 58... Ke7 $11 {[%emt 0:00:28]} 59. Rh7+ {[%emt 0:03:10]} Kd8 {[%emt 0:00:22]} 60. Rd7+ {[%emt 0:04:03]} Kc8 {[%emt 0:00:20]} 61. Rd6 {[%emt 0:00:21]} g4 {[%emt 0:00:25]} 62. Rxe6 {[%emt 0:00:23]} Rxd3 {[%emt 0:00:23]} 63. Rxe5 {[%emt 0:00:32]} g3 {[%emt 0:00:29]} 64. Rg5 {[%emt 0:00:52]} Re3 {[%emt 0:00:56]} 65. Kb6 {[%emt 0:00:43][%cal Rg5g8]} Rb3+ {[%emt 0:00:22]} 66. Kc5 {[%emt 0:00:21]} Rc3+ {[%emt 0:00:28]} 67. Kd5 {[%emt 0:00:27]} Rd3+ {[%emt 0:00:37]} 68. Kc4 {[%emt 0:00:38]} Ra3 {[%emt 0:00:32]} 69. Rg7 {[%emt 0:00:33] And now e5 would win.} Ra1 $2 {[%emt 0:01:11][%mdl 8192] [#] Black cannot hold the game after this.} (69... Ra4+ $14 70. Kd5 Ra3) 70. Rxg3 {[%emt 0:00:45] White mates.} Kc7 {[%emt 0:00:21]} 71. Rg6 {[%emt 0:00:29]} Rc1+ {[%emt 0:00:38]} 72. Kd5 {[%emt 0:00:27]} Rd1+ {[%emt 0:00:23]} 73. Ke5 {[%emt 0:00:23]} Re1 {[%emt 0:00:30]} 74. Re6 {[%emt 0:01:32]} Rh1 {[%emt 0:00:40]} 75. Kf6 {[%emt 0:00:41]} Rh6+ {[%emt 0:00:21]} 76. Kf7 {[%emt 0:00:24]} Rh4 {[%emt 0:00:36]} 77. e5 {[%emt 0:00:47]} Re4 {[%emt 0:00:30]} 78. Kf6 {[%emt 0:00:41]} Rf4+ {[%emt 0:00:21]} 79. Kg5 {[%emt 0:00:34]} Rf1 {[%emt 0:00:23]} 80. Rd6 {[%emt 0:00:27]} Rf2 {[%emt 0:00:27]} 81. Kg6 {[%emt 0:00:45]} Rf1 {[%emt 0:00:33]} 82. Rd2 {[%emt 0:01:48]} Re1 {[%emt 0:00:36]} 83. Kf6 {[%emt 0:00:22]} Rf1+ {[%emt 0:00:21]} 84. Ke6 {[%emt 0:01:04]} Rh1 {[%emt 0:00:30]} 85. Rc2 {[%emt 0:00:36]} Rh6+ {[%emt 0:00:28]} 86. Kf7 {[%emt 0:00:24]} Rh7+ {[%emt 0:00:22]} 87. Kg6 {[%emt 0:00:23]} Rh1 {[%emt 0:00:39]} 88. e6 {[%emt 0:00:40][%cal Be5e6,Be6e7][%mdl 32]} Rg1+ {[%emt 0:00:22]} 89. Kf7 {[%emt 0:00:22]} Rf1+ {[%emt 0:00:23]} 90. Ke8 {[%emt 0:00:48]} Re1 {[%emt 0:00:35]} 91. e7 {[%emt 0:00:31]} Rf1 {[%emt 0:00:29]} 92. Rh2 {[%emt 0:00:44]} Rf3 {[%emt 0:00:39]} 93. Rd2 {[%emt 0:00:44]} Rf1 {[%emt 0:00:23]} 94. Rd7+ {[%emt 0:00:30]} Kc8 {[%emt 0:00:24]} 95. c7 {[%emt 0:00:24]} Rh1 {[%emt 0:00:31]} 96. Rd8+ {[%emt 0:00:23]} Kxc7 {[%emt 0:00:22]} 97. Kf7 {[%emt 0:00:22] Weighted Error Value: White=0.06 (flawless) /Black=0.06 (flawless)} 1-0

[Event "Super United Croatia GCT Rapid 2022"]
[Site "Zagreb"]
[Date "2022.07.20"]
[Round "1.3"]
[White "Carlsen, Magnus"]
[Black "Nepomniachtchi, Ian"]
[Result "1/2-1/2"]
[ECO "D41"]
[WhiteElo "2864"]
[BlackElo "2766"]
[Annotator "TA"]
[PlyCount "77"]
[EventDate "2022.07.20"]
[EventType "tourn"]
[EventCountry "CRO"]
[SourceTitle "playchess.com"]
[Source "ChessBase"]
[SourceQuality "1"]
[TimeControl "5400+30"]

{[%evp 11,77,34,41,26,27,-4,25,26,29,15,17,29,22,10,12,12,13,7,15,0,0,0,11,11,14,11,12,14,14,14,62,61,62,6,7,8,7,3,6,1,2,0,0,0,0,0,0,0,0,0,0,0,0,0,0,0,0,0,0,0,0,0,0,0,0,0,0,0]} 1. d4 {[%emt 1:05:42]} Nf6 {[%emt 1:05:44]} 2. c4 {[%emt 0:00:23]} e6 {[%emt 0:00:23]} 3. Nf3 {[%emt 0:00:23]} d5 {[%emt 0:00:22]} 4. Nc3 {[%emt 0:00:22]} c5 {[%emt 0:00:24]} 5. cxd5 {[%emt 0:00:29]} cxd4 {[%emt 0:00:28]} 6. Qxd4 {[%emt 0:00:24]} exd5 {[%emt 0:00:25]} 7. e4 {[%emt 0:00:31] D41: Queen's Gambit Declined: Semi-Tarrasch with 5 cxd5.} (7. Bg5 Be7 8. e3 O-O 9. Rd1 Nc6 10. Qa4 Qb6 11. Rd2 Be6 12. Bd3 h6 13. Bh4 g5 14. Bg3 Bb4 15. O-O Ne4 16. Bxe4 dxe4 17. Nd4 Bc4 18. Rfd1 Bxc3 19. bxc3 {½-½ (51) Carlsen,M (2865)-Nepomniachtchi,I (2773) chess24.com INT 2022}) 7... dxe4 $1 {[%emt 0:00:39][%mdl 4] is more profitable than 7...Nc6 at the moment.} 8. Qxd8+ {[%emt 0:00:24]} Kxd8 {[%emt 0:00:22]} 9. Ng5 {[%emt 0:00:23][%csl LRe4,LRf7] White has an edge.} Be6 {[%emt 0:00:22]} 10. a3 {[%emt 0:00:46] Against Bb4} Nbd7 {[%emt 0:02:21][%cal Bb8d7,Bd7c5,Bc5d3][%mdl 32]} 11. Nxe6+ {[%emt 0:00:25]} fxe6 {[%emt 0:00:22]} 12. g3 {[%emt 0:00:50]} Rc8 {[%emt 0:01:39] [#]} 13. Bg2 $146 {[%emt 0:00:31][%mdl 1024] White has compensation.} ({Predecessor:} 13. Bh3 Ke7 14. O-O Kf7 15. Bg2 Rc4 16. Re1 Nc5 17. Be3 Nd3 18. Re2 Bc5 19. Bxc5 Nxc5 {0-1 (31) Praggnanandhaa,R (2624)-Giri,A (2773) Oslo 2022}) 13... Nc5 {[%emt 0:00:29]} 14. O-O {[%emt 0:01:11]} Bd6 {[%emt 0:00:29]} 15. Rb1 {[%emt 0:03:56]} Be5 {[%emt 0:01:03]} 16. b4 {[%emt 0:00:39]} Nd3 {[%emt 0:02:44]} 17. Nxe4 {[%emt 0:00:29] [#] Hoping for Rd1.} Nxc1 {[%emt 0:00:36]} 18. Rfxc1 {[%emt 0:01:25]} Rxc1+ {[%emt 0:00:45]} 19. Rxc1 {[%emt 0:00:25] aiming for Nc5.} Nxe4 {[%emt 0:01:20]} 20. Bxe4 $11 {[%emt 0:00:23][%mdl 4096] Endgame KRB-KRB} Bb2 {[%emt 0:00:21]} (20... b6 $11 {is superior.}) 21. Rb1 {[%emt 0:07:28] White is more active.} Bxa3 {[%emt 0:00:25]} 22. Rb3 {[%emt 0:00:39]} ({Reject} 22. Bxb7 Ke7 $11) (22. Ra1 $14 Bxb4 23. Rxa7) 22... Bc1 {[%emt 0:00:21] The position is equal.} 23. Bxb7 {[%emt 0:00:22] [#] And now Rc3 would win.} Ke7 {[%emt 0:01:14]} 24. b5 {[%emt 0:01:07]} Rd8 {[%emt 0:01:17]} 25. Be4 {[%emt 0:00:37]} h6 {[%emt 0:00:27]} 26. Kg2 {[%emt 0:01:05]} Rd2 {[%emt 0:01:10]} 27. Rc3 {[%emt 0:00:24]} Bb2 {[%emt 0:00:24]} 28. Rc7+ {[%emt 0:00:22]} Rd7 {[%emt 0:00:22]} 29. Rc2 {[%emt 0:00:29]} Bd4 {[%emt 0:00:38]} 30. f3 {[%emt 0:00:33]} Bb6 {[%emt 0:00:33]} 31. Kh3 {[%emt 0:00:36]} Rd4 {[%emt 0:00:28]} 32. Rb2 {[%emt 0:00:35]} Kf6 {[%emt 0:00:39]} 33. Kg4 {[%emt 0:00:24]} Rc4 {[%emt 0:01:53]} 34. h4 {[%emt 0:00:24]} Rc5 {[%emt 0:00:22]} 35. Rb1 {[%emt 0:00:30]} Ke7 {[%emt 0:00:26]} 36. Rb3 {[%emt 0:00:45]} Kf6 {[%emt 0:00:22]} 37. Rb1 {[%emt 0:00:21]} Ke7 {[%emt 0:00:21]} 38. Rb3 {[%emt 0:00:25]} Kf6 {[%emt 0:00:21]} 39. Rb1 {Weighted Error Value: White=0.06 (flawless) /Black=0.03 (flawless)} 1/2-1/2

[Event "Super United Croatia GCT Rapid 2022"]
[Site "Zagreb"]
[Date "2022.07.20"]
[Round "1.4"]
[White "Topalov, Veselin"]
[Black "Vachier-Lagrave, Maxime"]
[Result "0-1"]
[ECO "E61"]
[WhiteElo "2728"]
[BlackElo "2760"]
[Annotator "TA"]
[PlyCount "64"]
[EventDate "2022.07.20"]
[EventType "tourn"]
[EventCountry "CRO"]
[SourceTitle "playchess.com"]
[Source "ChessBase"]
[SourceQuality "1"]
[TimeControl "5400+30"]

{[%evp 13,64,22,21,2,27,25,47,5,37,19,63,12,14,7,14,-28,-21,-39,-48,-100,-89,-109,-95,-104,-105,-101,-98,-148,-163,-240,-238,-235,-234,-252,-252,-247,-248,-237,-259,-258,-259,-285,-307,-612,-406,-565,-552,-664,-657,-2053,-566,-29998,-29999]} 1. d4 {[%emt 1:05:44]} Nf6 {[%emt 1:05:47]} 2. c4 {[%emt 0:00:33]} g6 {[%emt 0:00:22]} 3. Nf3 {[%emt 0:00:22]} Bg7 {[%emt 0:00:22]} 4. e3 {[%emt 0:00:23]} O-O {[%emt 0:00:45]} 5. Be2 {[%emt 0:00:29]} c5 {[%emt 0:00:21]} 6. d5 {[%emt 0:00:44]} e6 {[%emt 0:00:54]} 7. Nc3 {[%emt 0:00:34]} d6 {[%emt 0:00:21]} 8. e4 {[%emt 0:01:20] E61: King's Indian: Early deviations for White, including Smyslov System.} Na6 $5 {[%emt 0:05:28][%mdl 4] Leaves trodden paths.} 9. O-O {[%emt 0:01:51]} Nc7 {[%emt 0:00:51] [#]} 10. Be3 $146 {[%emt 0:01:43] White is slightly better.} ({Predecessor:} 10. Re1 Re8 11. e5 dxe5 12. d6 Na6 13. Nxe5 Nd7 14. Nxd7 Bxd7 15. Bf3 Qb6 16. Re2 {0-1 (51) Mamedyarov,S (2809)-Dubov,D (2701) Moscow 2018}) 10... b6 {[%emt 0:00:58]} 11. h3 {[%emt 0:01:26]} Nh5 {[%emt 0:02:53]} 12. dxe6 {[%emt 0:03:04]} (12. Re1 $14) 12... Nxe6 $11 {[%emt 0:00:26]} 13. Qc1 {[%emt 0:02:52]} Bb7 {[%emt 0:02:43]} 14. Rd1 {[%emt 0:01:28][%cal Oe4e5]} Bxc3 {[%emt 0:01:13]} 15. Qxc3 {[%emt 0:00:30]} Bxe4 {[%emt 0:00:22]} 16. g3 {[%emt 0:04:47] Against Nhf4. Black continues to play with concentration.} (16. Qd2 $15) 16... Re8 $17 {[%emt 0:02:00]} 17. Rd2 {[%emt 0:00:41]} Nhg7 {[%emt 0:00:54]} 18. g4 {[%emt 0:02:24] Prevents Nf5.} Qe7 {[%emt 0:01:21]} 19. Rad1 {[%emt 0:00:29]} Rad8 {[%emt 0:00:21]} 20. Nh2 {[%emt 0:01:43]} (20. Bh6 $142) 20... f5 {[%emt 0:02:50] aiming for ...f4.} 21. Bh6 {[%emt 0:02:09]} (21. f3 {might work better.} Bc6 22. Bf1) 21... Nd4 $19 {[%emt 0:00:48]} 22. Rxd4 {[%emt 0:00:27]} cxd4 {[%emt 0:00:22]} 23. Rxd4 {[%emt 0:00:22]} Ne6 {[%emt 0:01:49]} 24. Rd1 {[%emt 0:02:34]} Qh4 {[%emt 0:00:50]} 25. Bc1 {[%emt 0:00:22]} Ng5 {[%emt 0:01:51]} 26. Bf1 {[%emt 0:00:21]} fxg4 {[%emt 0:00:22]} 27. hxg4 {[%emt 0:00:23]} Rf8 {[%emt 0:00:31][%csl Gf8][%cal Rh4f2]} 28. f4 {[%emt 0:00:46] [#]} (28. Qg3 Qxg3+ 29. fxg3) 28... Ba8 $1 {[%emt 0:01:46][%cal Od8e8] ...Rde8! is the strong threat.} 29. c5 {[%emt 0:01:34] [#]} (29. b4 Rde8) 29... bxc5 $1 {[%emt 0:00:58][%cal Od8e8]} 30. Qb3+ {[%emt 0:01:08]} (30. Rd3 Be4) 30... Rf7 {[%emt 0:01:24]} 31. Bd2 {[%emt 0:01:13] [#]} Ne4 {[%emt 0:00:39]} (31... Re8 $142 $1 {[%cal Og5f3] ( -> ...Nf3+!)} 32. Re1 Rxe1 33. Bxe1 Qxe1 34. Qb8+ Rf8 35. Qb3+ Ne6) 32. Ba5 {[%emt 0:00:27]} Qf2+ {[%emt 0:00:03] Weighted Error Value: White=0.90/Black=0.31} 0-1

[Event "Super United Croatia GCT Rapid 2022"]
[Site "Zagreb"]
[Date "2022.07.20"]
[Round "1.5"]
[White "Mamedyarov, Shakhriyar"]
[Black "Van Foreest, Jorden"]
[Result "0-1"]
[ECO "D37"]
[WhiteElo "2759"]
[BlackElo "2678"]
[Annotator "TA"]
[PlyCount "72"]
[EventDate "2022.07.20"]
[EventType "tourn"]
[EventCountry "CRO"]
[SourceTitle "playchess.com"]
[Source "ChessBase"]
[SourceQuality "1"]
[TimeControl "5400+30"]

{[%evp 9,72,30,27,25,31,14,23,10,25,27,25,22,22,1,0,-4,10,0,10,-17,-34,-45,-34,-35,-23,-29,12,-41,-40,-42,-39,-34,-31,-50,-25,-57,-27,-6,-16,-24,-5,0,-4,-184,-200,-196,-172,-185,-185,-203,-191,-262,-289,-332,-321,-322,-319,-637,-686,-662,-608,-1110,-1074,-3318,-3151]} 1. d4 {[%emt 1:05:42]} d5 {[%emt 1:05:42]} 2. c4 {[%emt 0:00:23]} e6 {[%emt 0:00:25]} 3. Nf3 {[%emt 0:00:51]} Nf6 {[%emt 0:00:25]} 4. Nc3 {[%emt 0:00:28]} a6 {[%emt 0:00:33]} 5. cxd5 {[%emt 0:01:24]} exd5 {[%emt 0:00:24]} 6. Bg5 {[%emt 0:00:23] D37: Queen's Gambit Declined: 5 Bf4.} Be6 {[%emt 0:00:45]} 7. Qb3 {[%emt 0:00:45]} Nbd7 {[%emt 0:01:55]} 8. e3 {[%emt 0:00:24] White has an edge.} Rb8 {[%emt 0:04:16]} 9. Qc2 {[%emt 0:00:37]} Bd6 {[%emt 0:00:34]} 10. Bd3 {[%emt 0:01:32]} c6 {[%emt 0:00:23] [#]} 11. Rb1 $146 {[%emt 0:01:07]} ({Predecessor:} 11. Bf4 Qc7 12. Bxd6 Qxd6 13. O-O h6 14. Rfc1 O-O 15. Na4 Rfe8 16. Nc5 Nxc5 17. Qxc5 Qxc5 18. Rxc5 {0-1 (67) Mirzoev,A (2510)-Rakhmanov,A (2629) Linares 2018}) 11... Qc7 {[%emt 0:00:47]} 12. b4 {[%emt 0:00:24]} O-O {[%emt 0:01:33]} 13. Bh4 {[%emt 0:00:48]} Bg4 {[%emt 0:00:45]} 14. Ng5 {[%emt 0:03:46]} h6 {[%emt 0:01:54]} (14... Bxh2 $2 15. Bxh7+ Kh8 16. g3 $18) 15. Nh7 {[%emt 0:00:26]} Nxh7 {[%emt 0:00:25]} 16. Bxh7+ {[%emt 0:00:23]} Kh8 {[%emt 0:00:22]} 17. Bd3 {[%emt 0:00:37]} Rfe8 {[%emt 0:01:13]} (17... Bxh2 $2 18. g3 $18) 18. h3 {[%emt 0:01:19]} ({White should play} 18. Bg3 $11) 18... Be6 $15 {[%emt 0:00:34]} 19. Ne2 {[%emt 0:00:24]} Nb6 {[%emt 0:00:50]} 20. O-O {[%emt 0:01:25]} Nc4 {[%emt 0:02:15]} 21. Bxc4 {[%emt 0:00:23]} dxc4 {[%emt 0:00:22]} 22. e4 {[%emt 0:00:22]} a5 {[%emt 0:01:22]} 23. b5 {[%emt 0:01:39]} cxb5 {[%emt 0:00:28]} 24. Rxb5 {[%emt 0:00:24]} Bd7 $36 {[%emt 0:00:59][%mdl 2048] Black has good play.} 25. Rh5 {[%emt 0:00:48]} b5 {[%emt 0:01:47][%cal Bb7b5,Bb5b4,Bb4b3][%mdl 32]} 26. Nc3 $2 {[%emt 0:04:10] This costs White the game.} (26. e5 $1 $11 {and White is okay.} Bf8 27. Bg3) 26... Qc6 $1 $19 {[%emt 0:00:21]} 27. Nd5 {[%emt 0:06:56][%cal Od5f6]} Bf8 {[%emt 0:00:33]} 28. Bg3 {[%emt 0:00:22]} Rbc8 {[%emt 0:00:50]} 29. Re1 {[%emt 0:01:21]} b4 {[%emt 0:00:49]} 30. Re3 {[%emt 0:00:21]} (30. Qc1 {was necessary.}) 30... a4 {[%emt 0:00:24][%cal Ba5a4,Ba4a3][%mdl 32]} 31. Be5 {[%emt 0:01:41]} b3 {[%emt 0:02:10]} 32. Qd2 {[%emt 0:00:30]} a3 {[%emt 0:03:28] ...b2 is the strong threat.} 33. Rg3 $2 {[%emt 0:01:29] [#]} (33. axb3 cxb3 34. Rxb3 (34. Rc3 $2 Rxe5 35. Rxc6 Rxc6 $19) 34... Qc1+ 35. Qxc1 Rxc1+ 36. Kh2 Rxe5 37. Rxe5) 33... Rxe5 $1 {[%emt 0:01:28][%mdl 512] Black is clearly winning.} 34. dxe5 {[%emt 0:00:21][%cal Od5f6] Hoping for Nf6!} c3 $1 {[%emt 0:01:04]} (34... b2 $2 35. Nf6 $1 {[%mdl 512]} b1=Q+ 36. Kh2 Qxf6 37. exf6 $18) 35. Nf6 {[%emt 0:02:30] [#]} Qxf6 {[%emt 0:00:32]} (35... cxd2 $2 {[#] leads to mate.} 36. Rxh6+ $3 {[%mdl 512]} gxh6 37. Rg8#) 36. Qxd7 {[%emt 0:00:22]} Qe6 {[%emt 0:00:47] Weighted Error Value: White=0.61/Black=0.04 (flawless)} 0-1

[Event "Super United Croatia GCT Rapid 2022"]
[Site "Zagreb"]
[Date "2022.07.20"]
[Round "2.1"]
[White "Vachier-Lagrave, Maxime"]
[Black "So, Wesley"]
[Result "1/2-1/2"]
[ECO "C67"]
[WhiteElo "2760"]
[BlackElo "2773"]
[Annotator "TA"]
[PlyCount "90"]
[EventDate "2022.07.20"]
[EventType "tourn"]
[EventCountry "CRO"]
[SourceTitle "playchess.com"]
[Source "ChessBase"]
[SourceQuality "1"]
[TimeControl "5400+30"]

{[%evp 18,90,24,17,18,16,18,20,20,23,19,10,8,6,14,4,7,0,7,0,0,0,0,0,0,0,0,0,0,0,0,0,0,0,0,0,0,0,0,0,0,0,0,0,0,0,0,0,20,0,0,0,0,0,0,0,0,0,0,0,0,0,0,0,0,0,0,0,0,0,0,0,0,0,0]} 1. e4 {[%emt 1:05:42]} e5 {[%emt 1:05:42]} 2. Nf3 {[%emt 0:00:22]} Nc6 {[%emt 0:00:22]} 3. Bb5 {[%emt 0:00:21]} Nf6 {[%emt 0:00:22]} 4. O-O {[%emt 0:00:26][%cal Bh1f1,Bf1e1,Be1e5][%mdl 32]} Nxe4 {[%emt 0:00:21]} 5. Re1 {[%emt 0:00:21]} Nd6 {[%emt 0:00:21]} 6. Nxe5 {[%emt 0:00:22]} Be7 {[%emt 0:00:22]} 7. Bf1 {[%emt 0:00:21]} Nxe5 {[%emt 0:00:22]} 8. Rxe5 {[%emt 0:00:22]} O-O {[%emt 0:00:22]} 9. d4 {[%emt 0:00:24]} Bf6 {[%emt 0:00:21]} 10. Re1 {[%emt 0:00:56]} Re8 {[%emt 0:00:22] C67: Ruy Lopez: Berlin Defence: 4 0-0 Nxe4.} 11. Bf4 {[%emt 0:01:20]} Rxe1 {[%emt 0:00:23]} 12. Qxe1 {[%emt 0:00:22]} Ne8 {[%emt 0:00:57]} 13. c3 {[%emt 0:00:27]} d5 {[%emt 0:00:24]} 14. a4 {[%emt 0:00:56] The position is equal.} a5 {[%emt 0:00:35]} 15. Nd2 {[%emt 0:00:24]} c6 {[%emt 0:00:34]} 16. Bd3 {[%emt 0:00:46]} g6 {[%emt 0:00:29] [#]} 17. Nf3 $146 {[%emt 0:02:30]} ({Predecessor:} 17. Nf1 Ng7 18. Ng3 h5 19. h3 h4 20. Nf1 Bf5 21. Bxf5 Nxf5 22. Ne3 Bg5 23. Bxg5 Qxg5 24. Nxf5 gxf5 {1-0 (67) Zarubitski,V (2412)-Dobrovoljc,V (2344) Bad Blankenburg 2018}) 17... Ng7 {[%emt 0:00:36]} 18. Qe3 {[%emt 0:00:25]} Bf5 {[%emt 0:00:45]} 19. Re1 {[%emt 0:01:00]} Bxd3 {[%emt 0:03:09]} 20. Qxd3 {[%emt 0:00:33]} Qb6 {[%emt 0:00:22]} 21. Qc2 {[%emt 0:03:48]} Re8 {[%emt 0:00:30]} 22. Rxe8+ {[%emt 0:00:26]} Nxe8 {[%emt 0:00:22]} 23. Ne5 {[%emt 0:00:44]} Bxe5 {[%emt 0:01:29]} 24. Bxe5 $11 {[%emt 0:01:06][%mdl 4096] Endgame KQB-KQN} f6 {[%emt 0:00:22]} 25. Bf4 {[%emt 0:00:25]} Kf7 {[%emt 0:00:33]} 26. h3 {[%emt 0:00:34]} Nc7 {[%emt 0:00:26]} 27. Bxc7 {[%emt 0:00:59]} Qxc7 {[%emt 0:00:22] KQ-KQ} 28. b4 {[%emt 0:01:12]} axb4 {[%emt 0:01:39]} 29. cxb4 {[%emt 0:00:22]} Qe7 {[%emt 0:01:24]} 30. b5 {[%emt 0:00:47]} cxb5 {[%emt 0:03:41]} 31. axb5 {[%emt 0:00:22]} Qd8 {[%emt 0:01:42]} 32. Qc5 {[%emt 0:00:42]} h5 {[%emt 0:00:44]} 33. Kf1 {[%emt 0:01:13]} Ke6 {[%emt 0:00:36]} 34. Ke2 {[%emt 0:01:25]} h4 {[%emt 0:00:35]} 35. Kf3 {[%emt 0:01:35]} g5 {[%emt 0:00:52]} 36. g3 {[%emt 0:01:05]} hxg3 {[%emt 0:00:54]} 37. fxg3 {[%emt 0:00:22]} Qe8 {[%emt 0:01:56]} 38. Qb6+ {[%emt 0:02:29]} Kf5 {[%emt 0:00:24]} 39. g4+ {[%emt 0:00:22]} Kg6 {[%emt 0:00:22]} 40. Qxb7 {[%emt 0:00:21]} Qe4+ {[%emt 0:00:23]} 41. Kg3 {[%emt 0:00:21] Active counter play!} Qe3+ {[%emt 0:00:22]} 42. Kg2 {[%emt 0:00:21]} Qe2+ {[%emt 0:00:22]} 43. Kg3 {[%emt 0:00:23]} Qe3+ {[%emt 0:00:21]} 44. Kg2 {[%emt 0:00:20]} Qe2+ {[%emt 0:00:22]} 45. Kg3 {[%emt 0:00:21]} Qe3+ {An even fight not without its subleties.  Weighted Error Value: White=0.02 (flawless) /Black=0.01 (flawless)} 1/2-1/2